fUST/lending_fUST_20250607
["ID","MTS","AMOUNT","RATE_DAILY","PERIOD"]
[364804422,1749246648997,-440.0,0.00023013,2]
[364804424,1749246649006,-440.0,0.00023013,2]
[364804426,1749246649016,-2256.09,0.00023013,2]
[364804428,1749246649025,-215.0738,0.0002303,2]
[364804430,1749246649035,-151.0,0.000231,7]
[364804432,1749246649044,-1631.69417752,0.00023107,8]
[364804434,1749246649053,-390.0,0.0002313,7]
[364804436,1749246649063,-342.0,0.000232,7]
[364804438,1749246649072,-984.69,0.000232,7]
[364804440,1749246649082,-1500.0,0.00023202,2]
[364804442,1749246649091,-1500.0,0.00023202,2]
[364804444,1749246649101,-1500.0,0.00023202,2]
[364804446,1749246649110,-1500.0,0.00023202,2]
[364804448,1749246649120,-150.0,0.00023216,2]
[364804450,1749246649129,-998.56595591,0.00023224,2]
[364804452,1749246649139,-1631.69417752,0.00023245,8]
[364804454,1749246649148,-203.52,0.00023287,2]
[364804456,1749246649158,-1661.79,0.00023287,2]
[364804458,1749246649168,-1308.92,0.00023287,2]
[364804460,1749246649177,-441.98,0.00023287,2]
[364804462,1749246649187,-2532.66,0.00023287,2]
[364804464,1749246649196,-2533.5,0.00023287,2]
[364804466,1749246649205,-718.97,0.00023287,2]
[364804468,1749246649214,-1045.46,0.00023287,2]
[364804470,1749246649224,-440.0,0.00023287,2]
[364804472,1749246649233,-440.0,0.00023287,2]
[364804482,1749246649243,-1598.13,0.00023287,2]
[364804485,1749246649339,-440.0,0.00023287,2]
[364804487,1749246649349,-440.0,0.00023287,2]
[364804489,1749246649359,-440.0,0.00023287,2]
[364804491,1749246649369,-1467.14,0.00023287,2]
[364804493,1749246649378,-440.0,0.00023287,2]
[364804495,1749246649387,-1217.48,0.00023287,2]
[364804497,1749246649398,-545.3,0.00023287,2]
[364804499,1749246649408,-2756.04,0.00023287,2]
[364804501,1749246649418,-440.0,0.00023287,2]
[364804503,1749246649427,-440.0,0.00023287,2]
[364804505,1749246649437,-440.0,0.00023287,2]
[364804507,1749246649447,-1347.95,0.00023287,2]
[364804509,1749246649456,-1535.01,0.00023287,2]
[364804511,1749246649466,-440.0,0.00023287,2]
[364804513,1749246649476,-485.74,0.00023287,2]
[364804515,1749246649485,-2752.06,0.00023287,2]
[364804517,1749246649495,-1270.58,0.00023287,2]
[364804519,1749246649504,-440.0,0.00023287,2]
[364804521,1749246649515,-2256.09,0.00023287,2]
[364804523,1749246649525,-480.129086,0.000233,2]
[364804525,1749246649534,-2400.0,0.000233,2]
[364804527,1749246649544,-1491.71526404,0.000233,2]
[364804529,1749246649553,-159.158105,0.00023324,7]
[364804531,1749246649563,-536.41,0.00023368,2]
[364804533,1749246649574,-536.41,0.00023368,2]
[364804535,1749246649585,-536.41,0.00023368,2]
[364804537,1749246649594,-536.41,0.00023368,2]
[364804539,1749246649603,-536.47,0.00023368,2]
[364804541,1749246649614,-1631.69417752,0.00023383,9]
[364804543,1749246649623,-159.40047306,0.00023397,2]
[364804545,1749246649633,-521.44,0.000234,14]
[364804547,1749246649642,-3156.86977727,0.00023461,2]
[364804549,1749246649653,-5000.0,0.00023484,2]
[364804551,1749246649663,-47469.57400398,0.000235,2]
[364804553,1749246649672,-1596.0,0.000235,7]
[364804555,1749246649682,-1596.0,0.000235,7]
[364804557,1749246649691,-151.0,0.000235,7]
[364804559,1749246649701,-1631.69417752,0.00023521,9]
[364804561,1749246649711,-500.0,0.0002353,2]
[364804564,1749246649720,-500.0,0.0002353,2]
[364804566,1749246649732,-500.0,0.0002353,2]
[364804568,1749246649741,-500.0,0.0002353,2]
[364804570,1749246649750,-500.0,0.0002353,2]
[364804572,1749246649759,-12500.0,0.00023543,3]
[364804574,1749246649768,-842.5625,0.00023543,3]
[364804576,1749246649778,-12500.0,0.00023552,3]
[364804578,1749246649786,-160.0,0.00023552,3]
[364804580,1749246649795,-12500.0,0.00023561,3]
[364804582,1749246649805,-1661.79,0.00023561,2]
[364804584,1749246649814,-1308.92,0.00023561,2]
[364804586,1749246649824,-441.98,0.00023561,2]
[364804588,1749246649834,-2532.66,0.00023561,2]
[364804590,1749246649842,-2533.5,0.00023561,2]
[364804592,1749246649851,-718.97,0.00023561,2]
[364804594,1749246649860,-1045.46,0.00023561,2]
[364804596,1749246649869,-440.0,0.00023561,2]
[364804598,1749246649878,-213.52,0.00023561,2]
[364804600,1749246649887,-1598.13,0.00023561,2]
[364804602,1749246649897,-440.0,0.00023561,2]
[364804604,1749246649906,-440.0,0.00023561,2]
[364804606,1749246649915,-440.0,0.00023561,2]
[364804608,1749246649924,-1467.14,0.00023561,2]
[364804610,1749246649934,-542.2,0.00023561,2]
[364804612,1749246649943,-1217.48,0.00023561,2]
[364804614,1749246649952,-545.3,0.00023561,2]
[364804616,1749246649962,-2756.04,0.00023561,2]
[364804618,1749246649971,-440.0,0.00023561,2]
[364804620,1749246649980,-440.0,0.00023561,2]
[364804622,1749246649989,-440.0,0.00023561,2]
[364804624,1749246649998,-1347.95,0.00023561,2]
[364804626,1749246650007,-1535.01,0.00023561,2]
[364804628,1749246650016,-440.0,0.00023561,2]
[364804630,1749246650025,-2752.06,0.00023561,2]
[364804632,1749246650034,-1270.58,0.00023561,2]
[364804634,1749246650044,-440.0,0.00023561,2]
[364804636,1749246650053,-2256.09,0.00023561,2]
[364804638,1749246650063,-229.52673067,0.000236,3]
[364804640,1749246650072,-834.50537533,0.000236,3]
[364804642,1749246650081,-160.0,0.000236,3]
[364804644,1749246650090,-423.83542519,0.000236,3]
[364804646,1749246650099,-600.0,0.00023605,2]
[364804648,1749246650109,-1631.69417752,0.00023659,9]
[364804650,1749246650118,-1985.24928924,0.000237,2]
[364804652,1749246650127,-2000.0,0.0002375,2]
[364804654,1749246650137,-852.94100457,0.0002375,2]
[364804656,1749246650146,-2000.0,0.0002375,2]
[364804658,1749246650155,-206.53827738,0.00023767,2]
[364804660,1749246650165,-167084.79361399,0.00023768,2]
[364804662,1749246650174,-1596.0,0.00023768,7]
[364804664,1749246650183,-1596.0,0.00023768,7]
[364804666,1749246650193,-151.0,0.00023768,7]
[364804668,1749246650202,-257.49099815,0.00023773,2]
[364804670,1749246650211,-1269.44698472,0.00023778,18]
[364804672,1749246650221,-2000.0,0.0002378,7]
[364804674,1749246650230,-2000.0,0.0002378,7]
[364804676,1749246650239,-1000.0,0.0002378,7]
[364804678,1749246650248,-1985.24928916,0.00023784,2]
[364804680,1749246650257,-1631.69417752,0.00023797,9]
[364804682,1749246650266,-174399.96265148,0.000238,2]
[364804684,1749246650275,-1050667.22244031,0.000238,3]
[364804732,1749246650725,-380.0,0.00019178,2]
[364804734,1749246650734,-440.0,0.00019178,2]
[364804736,1749246650744,-440.0,0.00019178,2]
[364804738,1749246650754,-440.0,0.00019452,2]
[364804740,1749246650763,-440.0,0.00019452,2]
[364804742,1749246650772,-308.31875038,0.00019452,2]
[364804744,1749246650783,-61.68124962,0.00019452,2]
[364804747,1749246650792,-440.0,0.00019726,2]
[364804749,1749246650801,-440.0,0.00019726,2]
[364804750,1749246650810,-400.0,0.0002,2]
[364804752,1749246650820,-440.0,0.0002,2]
[364804754,1749246650830,-390.0,0.00020273,2]
[364804757,1749246650841,-1698.43279331,0.000238,3]
[364804759,1749246650853,-63862.16107367,0.000238,3]
[364804761,1749246650864,-430.0,0.000238,3]
[364804763,1749246650876,-3196.67910751,0.000238,3]
[364804777,1749246650998,-396.9411603,0.00020547,2]
[364804786,1749246651071,-103.0588397,0.00020547,2]
[364804788,1749246651083,-332.4411603,0.000238,3]
[364804790,1749246651098,-1217.88098543,0.000238,3]
[364804803,1749246651199,-519.47999996,0.000238,3]
[364804805,1749246651211,-381.44168871,0.000238,3]
[364804810,1749246651258,-502.24,0.00019178,2]
[364804812,1749246651267,-440.0,0.00019178,2]
[364804814,1749246651276,-410.0,0.00019452,2]
[364804816,1749246651286,-11163.8659937,0.000238,3]
[364808481,1749246973753,150.0,0.00017067,2]
[364808483,1749247044425,150.0,0.00017067,2]
[364808488,1749247495858,-207.4,0.00018014,2]
[364808489,1749247500046,-371.76640356,0.00018014,2]
[364808490,1749247502261,-184.02123448,0.00018013,2]
[364808491,1749247504559,-115.97876552,0.00018013,2]
[364808492,1749247504582,-160.51906634,0.00018013,2]
[364808493,1749247506713,-139.48093366,0.00018013,2]
[364808494,1749247506734,-86.80571408,0.00018013,2]
[364808496,1749247511071,-195.85382659,0.00018013,2]
[364808497,1749247513704,-17.34045933,0.00018013,2]
[364808498,1749247513727,-137.05379469,0.00018013,2]
[364808499,1749247513886,357.974581,0.00013699,2]
[364808500,1749247516390,-162.94620531,0.00018013,2]
[364808501,1749247516415,-20.00379469,0.00018013,2]
[364808502,1749247518407,-155.3670742,0.00018013,2]
[364808503,1749247520048,-221.71357071,0.00018013,2]
[364808504,1749247521534,-258.55520364,0.00018013,2]
[364808505,1749247526143,-278.37449426,0.00018013,2]
[364808506,1749247529012,-188.18656307,0.00018013,2]
[364808507,1749247533590,-77.79929943,0.00018013,2]
[364808508,1749247533613,-178.28258602,0.00018014,2]
[364808509,1749247535981,-165.396631,0.00018014,2]
[364808510,1749247538648,-200.94979533,0.00018014,2]
[364808511,1749247541780,-210.35491054,0.00018014,2]
[364808512,1749247544293,-176.22801746,0.00018014,2]
[364808514,1749247551617,-180.08330764,0.00018013,2]
[364808516,1749247554731,-119.91669236,0.00018013,2]
[364808517,1749247554753,-139.74585319,0.00018014,2]
[364808520,1749247563935,-258.83449758,0.00018013,2]
[364808521,1749247566527,-41.16550242,0.00018013,2]
[364808522,1749247566548,-292.3537662,0.00018013,2]
[364808523,1749247568037,-7.6462338,0.00018013,2]
[364808524,1749247568060,-170.91839727,0.00018014,2]
[364808525,1749247571093,-363.14659446,0.00018014,2]
[364808526,1749247574501,-300.0,0.00018014,2]
[364808527,1749247576037,-443.45777451,0.00018014,2]
[364808528,1749247578553,-153.56906213,0.00018014,2]
[364808529,1749247582481,-196.68243519,0.00018014,2]
[364808530,1749247584520,-364.18772791,0.00018014,2]
[364808532,1749247590575,-151.06405933,0.00018014,2]
[364808534,1749247592385,-233.52,0.00018014,2]
[364808535,1749247593875,-305.6,0.00018014,2]
[364808537,1749247599080,-158.62,0.00018014,2]
[364808538,1749247600130,150.0,0.00017169,2]
[364808539,1749247600645,-259.91415826,0.00018014,2]
[364808540,1749247617124,-157.90957491,0.00018014,2]
[364808541,1749247618039,2639.4306206,0.00017962,2]
[364808542,1749247618614,-201.85554784,0.00018014,2]
[364808543,1749247621182,-270.52471525,0.00018014,2]
[364808544,1749247626503,-230.41930222,0.00018013,2]
[364808545,1749247630304,-69.58069778,0.00018013,2]
[364808546,1749247630326,-153.95114488,0.00018014,2]
[364808547,1749247632737,-222.25790411,0.00018014,2]
[364808548,1749247635227,-173.899304,0.00018014,2]
[364808549,1749247637723,-408.19835004,0.00018014,2]
[364808550,1749247639103,-182.57529871,0.00018014,2]
[364808551,1749247641933,-163.37215916,0.00018014,2]
[364808552,1749247644164,-18214.65159494,0.00018014,2]
[364808553,1749247644185,-1188.3646529,0.00018082,2]
[364808554,1749247644207,-180.600304,0.00018177,2]
[364808555,1749247644229,-167.02664136,0.00018597,2]
[364808556,1749247644251,-153.91786236,0.00018603,2]
[364808557,1749247644275,-150.0,0.0001873,2]
[364808558,1749247644299,-1193.4256947,0.000189,2]
[364808559,1749247654123,-836.71607024,0.000189,2]
[364808560,1749247654146,-181.49229004,0.00019077,2]
[364808561,1749247654167,-151.30541512,0.00019166,2]
[364808562,1749247654188,-296.64804132,0.00019173,2]
[364808563,1749247654209,-500.0,0.00019173,2]
[364808564,1749247654241,-500.0,0.00019173,2]
[364808565,1749247654265,-500.0,0.00019173,2]
[364808566,1749247654287,-513.67772657,0.00019173,2]
[364808567,1749247654308,-500.0,0.00019173,2]
[364808568,1749247654329,-1387.93864285,0.00019176,2]
[364808569,1749247654351,-239.49870347,0.00019176,2]
[364808570,1749247654376,-500.0,0.00019176,2]
[364808571,1749247654400,-500.0,0.00019176,2]
[364808572,1749247654428,-500.0,0.00019176,2]
[364808573,1749247654451,-500.0,0.00019176,2]
[364808574,1749247654475,-500.0,0.00019176,2]
[364808575,1749247654502,-500.0,0.00019176,2]
[364808576,1749247654525,-500.0,0.00019176,2]
[364808577,1749247654548,-500.0,0.00019176,2]
[364808578,1749247654571,-161.01657455,0.00019176,2]
[364808579,1749247654595,-500.0,0.00019176,2]
[364808580,1749247654618,-384.05083641,0.00019176,2]
[364808581,1749247654641,-500.0,0.00019176,2]
[364808582,1749247654665,-500.0,0.00019176,2]
[364808583,1749247654688,-500.0,0.00019176,2]
[364808584,1749247654711,-500.0,0.00019176,2]
[364808585,1749247654733,-500.0,0.00019176,2]
[364808586,1749247654760,-500.0,0.00019176,2]
[364808587,1749247654784,-500.0,0.00019176,2]
[364808588,1749247654807,-500.0,0.00019176,2]
[364808589,1749247654830,-87.76375879,0.00019176,2]
[364808590,1749247747701,174.0,0.00016438,3]
[364808591,1749247781644,967.26,0.00018263,2]
[364808633,1749247832147,-488.9885298,0.00018263,2]
[364808635,1749247832156,-177.87831904,0.00019078,2]
[364808638,1749247832165,-465.55619232,0.00019173,2]
[364808641,1749247832175,-500.0,0.00019173,2]
[364808643,1749247832184,-300.0,0.00019176,2]
[364808644,1749247832193,-300.0,0.00019176,2]
[364808647,1749247832204,-1200.0,0.00019176,2]
[364808649,1749247832214,-300.0,0.00019176,2]
[364808651,1749247832223,-500.0,0.00019177,2]
[364808653,1749247832232,-500.0,0.00019177,2]
[364808655,1749247832242,-500.0,0.00019177,2]
[364808656,1749247832251,-500.0,0.00019177,2]
[364808658,1749247832260,-500.0,0.00019177,2]
[364808659,1749247832270,-500.0,0.00019177,2]
[364808660,1749247832279,-500.0,0.00019177,2]
[364808661,1749247832289,-500.0,0.00019177,2]
[364808662,1749247832299,-500.0,0.00019177,2]
[364808664,1749247832308,-500.0,0.00019177,2]
[364808665,1749247832317,-500.0,0.00019177,2]
[364808666,1749247832327,-500.0,0.00019177,2]
[364808667,1749247832337,-500.0,0.00019177,2]
[364808668,1749247832346,-500.0,0.00019177,2]
[364808669,1749247832355,-500.0,0.00019177,2]
[364808670,1749247832365,-500.0,0.00019177,2]
[364808671,1749247832374,-500.0,0.00019177,2]
[364808672,1749247832383,-500.0,0.00019177,2]
[364808674,1749247832392,-500.0,0.00019177,2]
[364808676,1749247832401,-500.0,0.00019177,2]
[364808678,1749247832411,-500.0,0.00019177,2]
[364808680,1749247832420,-500.0,0.00019177,2]
[364808682,1749247832430,-500.0,0.00019177,2]
[364808685,1749247832439,-500.0,0.00019177,2]
[364808687,1749247832448,-437.5204842,0.00019177,2]
[364808706,1749247832614,-500.0,0.00019177,2]
[364808708,1749247832625,-500.0,0.00019177,2]
[364808710,1749247832634,-500.0,0.00019177,2]
[364808712,1749247832643,-500.0,0.00019177,2]
[364808714,1749247832653,-500.0,0.00019177,2]
[364808716,1749247832663,-500.0,0.00019177,2]
[364808718,1749247832672,-500.0,0.00019177,2]
[364808720,1749247832681,-500.0,0.00019177,2]
[364808722,1749247832691,-500.0,0.00019177,2]
[364808724,1749247832701,-500.0,0.00019177,2]
[364808726,1749247832711,-500.0,0.00019177,2]
[364808728,1749247832720,-500.0,0.00019177,2]
[364808730,1749247832730,-500.0,0.00019177,2]
[364808732,1749247832739,-500.0,0.00019177,2]
[364808734,1749247832748,-443.75204842,0.00019177,2]
[364808736,1749247832758,-500.0,0.00019177,2]
[364808738,1749247832767,-500.0,0.00019177,2]
[364808740,1749247832776,-500.0,0.00019177,2]
[364808742,1749247832786,-500.0,0.00019177,2]
[364808744,1749247832795,-440.0,0.00019178,2]
[364808746,1749247832805,-430.0,0.00019178,2]
[364808748,1749247832814,-430.0,0.00019178,2]
[364808750,1749247832823,-430.0,0.00019178,2]
[364808752,1749247832832,-430.0,0.00019178,2]
[364808754,1749247832841,-430.0,0.00019178,2]
[364808756,1749247832851,-430.0,0.00019178,2]
[364808758,1749247832860,-430.0,0.00019178,2]
[364808760,1749247832870,-430.0,0.00019178,2]
[364808762,1749247832879,-430.0,0.00019178,2]
[364808764,1749247832888,-307.723936,0.00019178,2]
[364808766,1749247832897,-430.0,0.00019178,2]
[364808768,1749247832907,-430.0,0.00019178,2]
[364808770,1749247832916,-430.0,0.00019178,2]
[364808772,1749247832926,-430.0,0.00019178,2]
[364808774,1749247832936,-430.0,0.00019178,2]
[364808776,1749247832945,-301.02993744,0.00019178,2]
[364808779,1749247832955,-430.0,0.00019178,2]
[364808782,1749247832964,-500.0,0.00019178,2]
[364808785,1749247832973,-473.99653753,0.00019178,2]
[364808788,1749247832982,-473.44892798,0.00019178,2]
[364808791,1749247832992,-430.0,0.00019178,2]
[364808794,1749247833001,-430.0,0.00019178,2]
[364808797,1749247833010,-452.95378395,0.00019178,2]
[364808799,1749247833019,-430.0,0.00019178,2]
[364808801,1749247833029,-451.02147244,0.00019178,2]
[364808803,1749247833038,-430.0,0.00019178,2]
[364808807,1749247833048,-430.0,0.00019178,2]
[364808810,1749247833058,-404.39570015,0.00019178,2]
[364808813,1749247833069,-430.0,0.00019178,2]
[364808816,1749247833079,-456.27933646,0.00019178,2]
[364808818,1749247833088,-528.24476099,0.00019178,2]
[364808820,1749247833098,-440.0,0.00019178,2]
[364808822,1749247833108,-430.0,0.00019178,2]
[364808824,1749247833118,-430.0,0.00019178,2]
[364808826,1749247833130,-430.0,0.00019178,2]
[364808828,1749247833140,-430.0,0.00019178,2]
[364808830,1749247833151,-430.0,0.00019178,2]
[364808832,1749247833160,-430.0,0.00019178,2]
[364808834,1749247833171,-430.0,0.00019178,2]
[364808836,1749247833180,-440.0,0.00019178,2]
[364808838,1749247833190,-430.0,0.00019178,2]
[364808839,1749247833199,-430.0,0.00019178,2]
[364808840,1749247833208,-430.0,0.00019178,2]
[364808842,1749247833217,-440.0,0.00019178,2]
[364808844,1749247833226,-430.0,0.00019178,2]
[364808846,1749247833235,-430.0,0.00019178,2]
[364808848,1749247833245,-403.15727008,0.00019178,2]
[364808850,1749247833253,-408.66453428,0.00019178,2]
[364808852,1749247833262,-430.0,0.00019178,2]
[364808854,1749247833272,-440.0,0.00019178,2]
[364808856,1749247833282,-42.48822892,0.00019178,2]
[364808858,1749247833297,-387.51177108,0.00019178,2]
[364808861,1749247833308,-440.0,0.00019178,2]
[364808862,1749247833317,-430.0,0.00019178,2]
[364808864,1749247833326,-440.0,0.00019178,2]
[364808867,1749247833335,-430.0,0.00019178,2]
[364808869,1749247833345,-440.0,0.00019178,2]
[364808871,1749247833355,-358.28365865,0.00019178,2]
[364808876,1749247833395,-81.71634135,0.00019178,2]
[364808878,1749247833404,-430.0,0.00019178,2]
[364808880,1749247833414,-430.0,0.00019178,2]
[364808882,1749247833423,-413.1213061,0.00019178,2]
[364808884,1749247833432,-430.0,0.00019178,2]
[364808886,1749247833441,-466.60529559,0.00019178,2]
[364808888,1749247833451,-430.0,0.00019178,2]
[364808890,1749247833460,-400.0,0.00019178,2]
[364808892,1749247833469,-430.0,0.00019178,2]
[364808894,1749247833478,-400.0,0.00019178,2]
[364808896,1749247833487,-430.0,0.00019178,2]
[364808898,1749247833497,-430.0,0.00019178,2]
[364808900,1749247833506,-440.0,0.00019178,2]
[364808902,1749247833516,-440.0,0.00019178,2]
[364808904,1749247833526,-440.0,0.00019178,2]
[364808906,1749247833535,-416.75031009,0.00019178,2]
[364808908,1749247833545,-440.0,0.00019178,2]
[364808910,1749247833555,-440.0,0.00019178,2]
[364808912,1749247833564,-440.0,0.00019178,2]
[364808914,1749247833574,-440.0,0.00019178,2]
[364808916,1749247833584,-440.0,0.00019178,2]
[364808918,1749247833593,-440.0,0.00019178,2]
[364808920,1749247833603,-430.0,0.00019178,2]
[364808922,1749247833612,-401.11114694,0.00019178,2]
[364808924,1749247833621,-440.0,0.00019178,2]
[364808926,1749247833631,-440.0,0.00019178,2]
[364808928,1749247833640,-400.0,0.00019178,2]
[364808930,1749247833650,-430.0,0.00019178,2]
[364808932,1749247833659,-400.0,0.00019178,2]
[364808934,1749247833668,-430.0,0.00019178,2]
[364808936,1749247833678,-249.15449928,0.00019178,2]
[364808938,1749247833688,-430.0,0.00019178,2]
[364808940,1749247833698,-203.69009957,0.00019178,2]
[364808942,1749247833708,-430.0,0.00019178,2]
[364808944,1749247833717,-430.0,0.00019178,2]
[364808946,1749247833727,-430.0,0.00019178,2]
[364808948,1749247833737,-400.0,0.00019178,2]
[364808950,1749247833746,-430.0,0.00019178,2]
[364808952,1749247833756,-400.0,0.00019178,2]
[364808954,1749247833765,-500.01100002,0.00019178,2]
[364808956,1749247833774,-430.0,0.00019178,2]
[364808958,1749247833784,-305.19891667,0.00019178,2]
[364808960,1749247833793,-430.0,0.00019178,2]
[364808962,1749247833802,-430.0,0.00019178,2]
[364808964,1749247833813,-430.0,0.00019178,2]
[364808966,1749247833822,-430.0,0.00019178,2]
[364808967,1749247833832,-430.0,0.00019178,2]
[364808969,1749247833842,-255.18204995,0.00019178,2]
[364808972,1749247833856,-174.81795005,0.00019178,2]
[364808974,1749247833867,-430.0,0.00019178,2]
[364808976,1749247833878,-434.54221826,0.00019178,2]
[364808978,1749247833887,-430.0,0.00019178,2]
[364808980,1749247833897,-238.6573862,0.00019178,2]
[364808982,1749247833906,-430.0,0.00019178,2]
[364808983,1749247833916,-430.0,0.00019178,2]
[364808986,1749247833926,-242.7196056,0.00019178,2]
[364808987,1749247833936,-440.0,0.00019178,2]
[364808989,1749247833946,-400.0,0.00019178,2]
[364808991,1749247833956,-430.0,0.00019178,2]
[364808993,1749247833966,-440.0,0.00019178,2]
[364808995,1749247833975,-450.0,0.00019178,2]
[364808997,1749247833986,-450.0,0.00019178,2]
[364808999,1749247833995,-430.0,0.00019178,2]
[364809001,1749247834005,-430.0,0.00019178,2]
[364809003,1749247834015,-450.0,0.00019178,2]
[364809005,1749247834024,-446.21677449,0.00019178,2]
[364809007,1749247834034,-430.0,0.00019178,2]
[364809009,1749247834043,-440.0,0.00019178,2]
[364809011,1749247834053,-570.11674219,0.00019178,2]
[364809013,1749247834062,-450.0,0.00019178,2]
[364809015,1749247834072,-450.0,0.00019178,2]
[364809017,1749247834082,-430.0,0.00019178,2]
[364809019,1749247834092,-430.0,0.00019178,2]
[364809021,1749247834101,-430.0,0.00019178,2]
[364809023,1749247834111,-430.0,0.00019178,2]
[364809025,1749247834120,-336.96850196,0.00019178,2]
[364809027,1749247834132,-430.0,0.00019178,2]
[364809028,1749247834141,-430.0,0.00019178,2]
[364809030,1749247834151,-400.0,0.00019178,2]
[364809032,1749247834160,-430.0,0.00019178,2]
[364809034,1749247834171,-430.0,0.00019178,2]
[364809036,1749247834181,-440.0,0.00019178,2]
[364809038,1749247834190,-400.0,0.00019178,2]
[364809040,1749247834200,-430.0,0.00019178,2]
[364809042,1749247834211,-450.0,0.00019178,2]
[364809044,1749247834220,-430.0,0.00019178,2]
[364809046,1749247834230,-440.0,0.00019178,2]
[364809048,1749247834239,-400.0,0.00019178,2]
[364809050,1749247834248,-430.0,0.00019178,2]
[364809052,1749247834257,-430.0,0.00019178,2]
[364809054,1749247834267,-440.0,0.00019178,2]
[364809055,1749247834276,-430.0,0.00019178,2]
[364809057,1749247834286,-430.92488639,0.00019178,2]
[364809059,1749247834295,-450.0,0.00019178,2]
[364809061,1749247834305,-430.0,0.00019178,2]
[364809063,1749247834314,-450.0,0.00019178,2]
[364809065,1749247834324,-406.09963156,0.00019178,2]
[364809067,1749247834333,-430.0,0.00019178,2]
[364809069,1749247834343,-430.0,0.00019178,2]
[364809071,1749247834352,-450.0,0.00019178,2]
[364809073,1749247834362,-430.0,0.00019178,2]
[364809075,1749247834371,-430.0,0.00019178,2]
[364809077,1749247834380,-430.0,0.00019178,2]
[364809078,1749247834390,-430.0,0.00019178,2]
[364809080,1749247834399,-430.0,0.00019178,2]
[364809082,1749247834409,-430.0,0.00019178,2]
[364809084,1749247834418,-430.0,0.00019178,2]
[364809086,1749247834431,-406.22550796,0.00019178,2]
[364809088,1749247834440,-430.0,0.00019178,2]
[364809090,1749247834450,-430.0,0.00019178,2]
[364809092,1749247834459,-430.0,0.00019178,2]
[364809094,1749247834469,-440.0,0.00019178,2]
[364809096,1749247834478,-430.0,0.00019178,2]
[364809098,1749247834488,-430.0,0.00019178,2]
[364809100,1749247834497,-430.0,0.00019178,2]
[364809102,1749247834507,-430.0,0.00019178,2]
[364809104,1749247834516,-430.0,0.00019178,2]
[364809106,1749247834525,-430.0,0.00019178,2]
[364809107,1749247834544,-430.0,0.00019178,2]
[364809109,1749247834555,-430.0,0.00019178,2]
[364809111,1749247834564,-440.0,0.00019178,2]
[364809113,1749247834574,-430.0,0.00019178,2]
[364809114,1749247834583,-430.0,0.00019178,2]
[364809115,1749247834593,-430.0,0.00019178,2]
[364809116,1749247834603,-440.0,0.00019178,2]
[364809117,1749247834613,-430.0,0.00019178,2]
[364809118,1749247834622,-406.72044272,0.00019178,2]
[364809119,1749247834632,-453.37961413,0.00019178,2]
[364809120,1749247834642,-440.0,0.00019178,2]
[364809121,1749247834652,-440.0,0.00019178,2]
[364809122,1749247834661,-415.71153475,0.00019178,2]
[364809123,1749247834671,-430.0,0.00019178,2]
[364809124,1749247834680,-440.0,0.00019178,2]
[364809125,1749247834690,-430.0,0.00019178,2]
[364809126,1749247834700,-430.0,0.00019178,2]
[364809127,1749247834710,-440.0,0.00019178,2]
[364809128,1749247834720,-538.75124364,0.00019178,2]
[364809129,1749247834730,-430.0,0.00019178,2]